fUSD/lending_fUSD_20241107
["ID","MTS","AMOUNT","RATE_DAILY","PERIOD"]
[341542347,1730971144307,-232.81474,0.0003041,4]
[341542348,1730971144331,-500.0,0.0003041,4]
[341542349,1730971144354,-399.93760205,0.0003041,4]
[341542350,1730971144379,-500.0,0.0003041,4]
[341542351,1730971144401,-500.0,0.0003041,4]
[341542352,1730971144425,-500.0,0.0003041,4]
[341542353,1730971144447,-500.0,0.0003041,4]
[341542354,1730971144470,-500.0,0.0003041,4]
[341542355,1730971144492,-500.0,0.0003041,4]
[341542356,1730971144514,-500.0,0.0003041,4]
[341542357,1730971144536,-500.0,0.0003041,4]
[341542358,1730971144557,-500.0,0.0003041,4]
[341542359,1730971144580,-500.0,0.0003041,4]
[341542360,1730971144603,-500.0,0.0003041,4]
[341542361,1730971144625,-500.0,0.0003041,4]
[341542362,1730971144945,-500.0,0.0003041,4]
[341542363,1730971144969,-500.0,0.0003041,4]
[341542364,1730971144991,-730.59,0.0003041,4]
[341542365,1730971145013,-500.0,0.0003041,4]
[341542366,1730971145035,-500.0,0.0003041,4]
[341542367,1730971145057,-500.0,0.0003041,4]
[341542368,1730971145079,-500.0,0.0003041,4]
[341542369,1730971145102,-500.0,0.0003041,4]
[341542370,1730971145125,-500.0,0.0003041,4]
[341542371,1730971145148,-500.0,0.0003041,4]
[341542372,1730971145172,-300.0,0.0003041,4]
[341542373,1730971145195,-500.0,0.0003041,4]
[341542374,1730971145217,-500.0,0.0003041,4]
[341542375,1730971145239,-500.0,0.0003041,4]
[341542376,1730971145261,-500.0,0.0003041,4]
[341542377,1730971145286,-500.0,0.0003041,4]
[341542378,1730971145310,-500.0,0.0003041,4]
[341542379,1730971145333,-500.0,0.0003041,4]
[341542380,1730971145359,-500.0,0.0003041,4]
[341542381,1730971145381,-500.0,0.0003041,4]
[341542382,1730971145403,-500.0,0.0003041,4]
[341542383,1730971145426,-537.66,0.0003041,4]
[341542384,1730971145450,-500.0,0.0003041,4]
[341542385,1730971145472,-500.0,0.0003041,4]
[341542386,1730971145494,-774.89,0.0003041,4]
[341542387,1730971145516,-500.0,0.0003041,4]
[341542388,1730971145538,-500.0,0.0003041,4]
[341542389,1730971145560,-500.0,0.0003041,4]
[341542390,1730971145583,-500.0,0.0003041,4]
[341542391,1730971145604,-687.97,0.0003041,4]
[341542392,1730971145626,-500.0,0.0003041,4]
[341542393,1730971145647,-500.0,0.0003041,4]
[341542394,1730971145669,-500.0,0.0003041,4]
[341542395,1730971145691,-500.0,0.0003041,4]
[341542396,1730971145713,-500.0,0.0003041,4]
[341542397,1730971145735,-500.0,0.0003041,4]
[341542398,1730971145759,-682.28,0.0003041,4]
[341542399,1730971145782,-500.0,0.0003041,4]
[341542400,1730971145803,-500.0,0.0003041,4]
[341542401,1730971145824,-500.0,0.0003041,4]
[341542402,1730971145845,-500.0,0.0003041,4]
[341542403,1730971145865,-500.0,0.0003041,4]
[341542404,1730971145886,-500.0,0.0003041,4]
[341542405,1730971145908,-749.9,0.0003041,4]
[341542406,1730971145929,-500.0,0.0003041,4]
[341542407,1730971145951,-500.0,0.0003041,4]
[341542408,1730971145970,-500.0,0.0003041,4]
[341542409,1730971145989,-500.0,0.0003041,4]
[341542410,1730971146007,-500.0,0.0003041,4]
[341542411,1730971146024,-749.72,0.0003041,4]
[341542412,1730971146042,-500.0,0.0003041,4]
[341542413,1730971146061,-500.0,0.0003041,4]
[341542414,1730971146079,-500.0,0.0003041,4]
[341542415,1730971146098,-712.67,0.0003041,4]
[341542416,1730971146117,-597.48,0.0003041,4]
[341542417,1730971146140,-500.0,0.0003041,4]
[341542418,1730971146164,-500.0,0.0003041,4]
[341542419,1730971146187,-500.0,0.0003041,4]
[341542420,1730971146210,-500.0,0.0003041,4]
[341542421,1730971146232,-500.0,0.0003041,4]
[341542422,1730971146255,-500.0,0.0003041,4]
[341542423,1730971146278,-500.0,0.0003041,4]
[341542424,1730971146304,-500.0,0.0003041,4]
[341542425,1730971146329,-500.0,0.0003041,4]
[341542426,1730971146351,-500.0,0.0003041,4]
[341542427,1730971146375,-646.88,0.0003041,4]
[341542428,1730971146398,-500.0,0.0003041,4]
[341542429,1730971146428,-500.0,0.0003041,4]
[341542430,1730971146452,-500.0,0.0003041,4]
[341542431,1730971146474,-638.40962809,0.0003041,4]
[341542432,1730971146494,-500.0,0.0003041,4]
[341542433,1730971146513,-500.0,0.0003041,4]
[341542434,1730971146533,-500.0,0.0003041,4]
[341542435,1730971146552,-605.59,0.0003041,4]
[341542436,1730971146571,-500.0,0.0003041,4]
[341542437,1730971146588,-613.29,0.0003041,4]
[341542438,1730971146607,-500.0,0.0003041,4]
[341542439,1730971146624,-500.0,0.0003041,4]
[341542440,1730971146642,-500.0,0.0003041,4]
[341542441,1730971146667,-1693.8,0.0003041,4]
[341542442,1730971146690,-500.0,0.0003041,4]
[341542443,1730971146713,-553.05,0.0003041,4]
[341542444,1730971146735,-500.0,0.0003041,4]
[341542445,1730971146758,-500.0,0.0003041,4]
[341542446,1730971146780,-500.0,0.0003041,4]
[341542447,1730971146803,-500.0,0.0003041,4]
[341542448,1730971146825,-500.0,0.0003041,4]
[341542449,1730971146848,-500.0,0.0003041,4]
[341542450,1730971146870,-828.97,0.0003041,4]
[341542451,1730971146893,-500.0,0.0003041,4]
[341542452,1730971146917,-500.0,0.0003041,4]
[341542453,1730971146940,-1212.05,0.0003041,4]
[341542454,1730971146963,-500.0,0.0003041,4]
[341542455,1730971146985,-500.0,0.0003041,4]
[341542456,1730971147008,-2353.59,0.0003041,4]
[341542457,1730971147030,-500.0,0.0003041,4]
[341542458,1730971147053,-639.58,0.0003041,4]
[341542459,1730971147130,-743.73,0.0003041,4]
[341542460,1730971147157,-1330.84,0.0003041,4]
[341542461,1730971147180,-2834.07,0.0003041,4]
[341542462,1730971147203,-500.0,0.0003041,4]
[341542463,1730971147227,-1423.99,0.0003041,4]
[341542464,1730971147249,-500.0,0.0003041,4]
[341542465,1730971147271,-638.18,0.0003041,4]
[341542466,1730971147297,-509.16,0.0003041,4]
[341542467,1730971147320,-169.66556911,0.0003041,4]
[341542468,1730971147343,-500.0,0.0003041,4]
[341542469,1730971147366,-610.62,0.0003041,4]
[341542470,1730971147388,-500.0,0.0003041,4]
[341542471,1730971147411,-500.0,0.0003041,4]
[341542472,1730971147432,-500.0,0.0003041,4]
[341542473,1730971147455,-1854.85,0.0003041,4]
[341542474,1730971147476,-500.0,0.0003041,4]
[341542475,1730971147497,-500.0,0.0003041,4]
[341542476,1730971147518,-364.99344804,0.0003041,4]
[341542477,1730971147541,-1449.94,0.0003041,4]
[341542478,1730971147562,-787.38,0.0003041,4]
[341542479,1730971147583,-1171.99,0.0003041,4]
[341542480,1730971147604,-500.0,0.0003041,4]
[341542481,1730971147626,-781.37,0.0003041,4]
[341542482,1730971147648,-500.0,0.0003041,4]
[341542483,1730971147670,-1275.55,0.0003041,4]
[341542484,1730971147692,-500.0,0.0003041,4]
[341542485,1730971147713,-993.68,0.0003041,4]
[341542486,1730971147735,-500.0,0.0003041,4]
[341542487,1730971147756,-500.0,0.0003041,4]
[341542488,1730971147777,-500.0,0.0003041,4]
[341542489,1730971147799,-583.04,0.0003041,4]
[341542490,1730971147821,-1246.86,0.0003041,4]
[341542491,1730971147842,-858.15,0.0003041,4]
[341542492,1730971147862,-391.99936101,0.0003041,4]
[341542493,1730971147883,-1995.43,0.0003041,4]
[341542494,1730971147903,-500.0,0.0003041,4]
[341542495,1730971147924,-500.0,0.0003041,4]
[341542496,1730971147944,-500.0,0.0003041,4]
[341542497,1730971147965,-500.0,0.0003041,4]
[341542498,1730971147986,-500.0,0.0003041,4]
[341542499,1730971148006,-512.97,0.0003041,4]
[341542500,1730971148026,-500.0,0.0003041,4]
[341542501,1730971148047,-500.0,0.0003041,4]
[341542502,1730971148067,-657.21,0.0003041,4]
[341542503,1730971148089,-500.0,0.0003041,4]
[341542504,1730971148110,-935.04,0.0003041,4]
[341542505,1730971148132,-500.0,0.0003041,4]
[341542506,1730971148154,-500.0,0.0003041,4]
[341542507,1730971148177,-519.06,0.0003041,4]
[341542508,1730971148196,-573.95299873,0.0003041,4]
[341542509,1730971148212,-500.0,0.0003041,4]
[341542510,1730971148229,-1447.91,0.0003041,4]
[341542511,1730971148245,-500.0,0.0003041,4]
[341542512,1730971148262,-500.0,0.0003041,4]
[341542513,1730971148278,-500.0,0.0003041,4]
[341542514,1730971148299,-500.0,0.0003041,4]
[341542515,1730971148316,-741.6,0.0003041,4]
[341542516,1730971148335,-1679.11,0.0003041,4]
[341542517,1730971148351,-566.35,0.0003041,4]
[341542518,1730971148371,-557.0,0.0003041,4]
[341542519,1730971148388,-1728.46,0.0003041,4]
[341542520,1730971148404,-500.0,0.0003041,4]
[341542521,1730971148422,-500.0,0.0003041,4]
[341542522,1730971148438,-500.0,0.0003041,4]
[341542523,1730971148456,-500.0,0.0003041,4]
[341542524,1730971148471,-500.0,0.0003041,4]
[341542525,1730971148488,-500.0,0.0003041,4]
[341542526,1730971148505,-500.0,0.0003041,4]
[341542527,1730971148522,-500.0,0.0003041,4]
[341542528,1730971148539,-526.82,0.0003041,4]
[341542529,1730971148556,-500.0,0.0003041,4]
[341542530,1730971148572,-523.29,0.0003041,4]
[341542531,1730971148590,-500.0,0.0003041,4]
[341542532,1730971148606,-500.0,0.0003041,4]
[341542533,1730971148623,-607.39,0.0003041,4]
[341542534,1730971148639,-1111.38,0.0003041,4]
[341542535,1730971148659,-500.0,0.0003041,4]
[341542536,1730971148680,-500.0,0.0003041,4]
[341542537,1730971148700,-1230.57,0.0003041,4]
[341542538,1730971148721,-403.50972707,0.0003041,4]
[341542539,1730971148742,-500.0,0.0003041,4]
[341542540,1730971148762,-500.0,0.0003041,4]
[341542541,1730971148784,-648.65,0.0003041,4]
[341542542,1730971148804,-921.78,0.0003041,4]
[341542543,1730971148826,-500.0,0.0003041,4]
[341542544,1730971148847,-896.22,0.0003041,4]
[341542545,1730971148867,-500.0,0.0003041,4]
[341542546,1730971148889,-514.19,0.0003041,4]
[341542547,1730971148911,-1162.82,0.0003041,4]
[341542548,1730971148932,-500.0,0.0003041,4]
[341542549,1730971148952,-1322.61,0.0003041,4]
[341542550,1730971148973,-978.58,0.0003041,4]
[341542551,1730971148994,-574.33,0.0003041,4]
[341542552,1730971149016,-500.0,0.0003041,4]
[341542553,1730971149038,-1387.23,0.0003041,4]
[341542554,1730971149059,-546.96,0.0003041,4]
[341542555,1730971149081,-500.0,0.0003041,4]
[341542556,1730971149101,-500.0,0.0003041,4]
[341542557,1730971149122,-941.3,0.0003041,4]
[341542558,1730971149144,-505.11,0.0003041,4]
[341542559,1730971149167,-1716.07,0.0003041,4]
[341542560,1730971149189,-595.44,0.0003041,4]
[341542561,1730971149210,-691.74,0.0003041,4]
[341542562,1730971149230,-500.0,0.0003041,4]
[341542563,1730971149252,-500.0,0.0003041,4]
[341542564,1730971149273,-1075.73,0.0003041,4]
[341542565,1730971149298,-500.0,0.0003041,4]
[341542566,1730971149320,-500.0,0.0003041,4]
[341542567,1730971149340,-1022.46,0.0003041,4]
[341542568,1730971149362,-964.98,0.0003041,4]
[341542569,1730971149383,-500.0,0.0003041,4]
[341542570,1730971149403,-500.0,0.0003041,4]
[341542571,1730971149425,-525.75,0.0003041,4]
[341542572,1730971149447,-500.0,0.0003041,4]
[341542573,1730971149468,-423.81187796,0.0003041,4]
[341542574,1730971149488,-1411.52,0.0003041,4]
[341542575,1730971149508,-500.0,0.0003041,4]
[341542576,1730971149529,-500.0,0.0003041,4]
[341542577,1730971149552,-505.18,0.0003041,4]
[341542578,1730971149573,-1567.13,0.0003041,4]
[341542579,1730971149594,-500.0,0.0003041,4]
[341542580,1730971149616,-576.19,0.0003041,4]
[341542581,1730971149637,-1080.04,0.0003041,4]
[341542582,1730971149659,-500.0,0.0003041,4]
[341542583,1730971149680,-500.0,0.0003041,4]
[341542584,1730971149701,-909.29,0.0003041,4]
[341542585,1730971149723,-500.0,0.0003041,4]
[341542586,1730971149744,-1159.29,0.0003041,4]
[341542587,1730971149766,-500.0,0.0003041,4]
[341542588,1730971149787,-500.0,0.0003041,4]
[341542589,1730971149809,-1126.49,0.0003041,4]
[341542590,1730971149831,-1252.43,0.0003041,4]
[341542591,1730971149852,-586.04,0.0003041,4]
[341542592,1730971149873,-1119.55,0.0003041,4]
[341542593,1730971149894,-923.87,0.0003041,4]
[341542594,1730971149915,-500.0,0.0003041,4]
[341542595,1730971149933,-500.0,0.0003041,4]
[341542596,1730971149951,-500.0,0.0003041,4]
[341542597,1730971149969,-574.61,0.0003041,4]
[341542598,1730971149986,-912.57,0.0003041,4]
[341542599,1730971150003,-534.9,0.0003041,4]
[341542600,1730971150021,-512.04,0.0003041,4]
[341542601,1730971150041,-500.0,0.0003041,4]
[341542602,1730971150058,-500.0,0.0003041,4]
[341542603,1730971150077,-580.86,0.0003041,4]
[341542604,1730971150094,-500.0,0.0003041,4]
[341542605,1730971150111,-500.0,0.0003041,4]
[341542606,1730971150129,-1131.82,0.0003041,4]
[341542607,1730971150148,-500.0,0.0003041,4]
[341542608,1730971150170,-1160.03,0.0003041,4]
[341542609,1730971150186,-774.27,0.0003041,4]
[341542610,1730971150206,-500.0,0.0003041,4]
[341542611,1730971150225,-576.76,0.0003041,4]
[341542612,1730971150244,-500.0,0.0003041,4]
[341542613,1730971150385,-500.0,0.0003041,4]
[341542614,1730971150404,-1245.7,0.0003041,4]
[341542615,1730971150425,-500.0,0.0003041,4]
[341542616,1730971150444,-1103.85,0.0003041,4]
[341542617,1730971150463,-560.55,0.0003041,4]
[341542618,1730971150480,-500.0,0.0003041,4]
[341542619,1730971150498,-500.0,0.0003041,4]
[341542620,1730971150514,-500.0,0.0003041,4]
[341542621,1730971150531,-500.0,0.0003041,4]
[341542622,1730971150550,-529.13,0.0003041,4]
[341542623,1730971150570,-500.0,0.0003041,4]
[341542624,1730971150588,-1022.29,0.0003041,4]
[341542625,1730971150605,-924.17,0.0003041,4]
[341542626,1730971150624,-1236.48,0.0003041,4]
[341542627,1730971150641,-500.0,0.0003041,4]
[341542628,1730971150659,-500.0,0.0003041,4]
[341542629,1730971150677,-500.0,0.0003041,4]
[341542630,1730971150695,-500.0,0.0003041,4]
[341542631,1730971150713,-500.0,0.0003041,4]
[341542632,1730971150734,-1296.88,0.0003041,4]
[341542633,1730971150755,-695.29,0.0003041,4]
[341542634,1730971150786,-1468.11,0.0003041,4]
[341542635,1730971150813,-864.94,0.0003041,4]
[341542636,1730971150836,-500.0,0.0003041,4]
[341542637,1730971150859,-500.0,0.0003041,4]
[341542638,1730971150883,-532.61,0.0003041,4]
[341542639,1730971150906,-500.0,0.0003041,4]
[341542640,1730971150929,-627.27,0.0003041,4]
[341542641,1730971150953,-500.0,0.0003041,4]
[341542642,1730971150976,-500.0,0.0003041,4]
[341542643,1730971150998,-566.98111306,0.0003041,4]
[341542644,1730971151021,-500.0,0.0003041,4]
[341542645,1730971151044,-500.0,0.0003041,4]
[341542646,1730971151067,-540.92,0.0003041,4]
[341542647,1730971151090,-900.87,0.0003041,4]
[341542648,1730971151112,-516.06,0.0003041,4]
[341542649,1730971151135,-500.0,0.0003041,4]
[341542650,1730971151159,-500.0,0.0003041,4]
[341542651,1730971151182,-756.18,0.0003041,4]
[341542652,1730971151206,-348.45,0.0003041,4]
[341542653,1730971151229,-500.0,0.0003041,4]
[341542654,1730971151251,-500.0,0.0003041,4]
[341542655,1730971151278,-1187.19,0.0003041,4]
[341542656,1730971151303,-597.06,0.0003041,4]
[341542657,1730971151327,-844.92,0.0003041,4]
[341542658,1730971151351,-500.0,0.0003041,4]
[341542659,1730971151379,-500.0,0.0003041,4]
[341542660,1730971151405,-547.78,0.0003041,4]
[341542661,1730971151437,-500.0,0.0003041,4]
[341542662,1730971151465,-583.37,0.0003041,4]
[341542663,1730971151490,-577.19,0.0003041,4]
[341542664,1730971151514,-1467.84,0.0003041,4]
[341542665,1730971151538,-500.0,0.0003041,4]
[341542666,1730971151561,-500.0,0.0003041,4]
[341542667,1730971151584,-958.45,0.0003041,4]
[341542668,1730971151606,-500.0,0.0003041,4]
[341542669,1730971151628,-573.12,0.0003041,4]
[341542670,1730971151650,-500.0,0.0003041,4]
[341542671,1730971151674,-500.0,0.0003041,4]
[341542672,1730971151696,-500.0,0.0003041,4]
[341542673,1730971151720,-556.09,0.0003041,4]
[341542674,1730971151744,-1269.92,0.0003041,4]
[341542675,1730971151766,-500.0,0.0003041,4]
[341542676,1730971151788,-500.0,0.0003041,4]
[341542677,1730971151811,-500.0,0.0003041,4]
[341542678,1730971151833,-500.0,0.0003041,4]
[341542679,1730971151856,-1384.48,0.0003041,4]
[341542680,1730971151878,-500.0,0.0003041,4]
[341542681,1730971151900,-1960.0,0.0003041,4]
[341542682,1730971151925,-500.0,0.0003041,4]
[341542683,1730971151947,-500.0,0.0003041,4]
[341542684,1730971151969,-817.07,0.0003041,4]
[341542685,1730971151991,-500.0,0.0003041,4]
[341542686,1730971152013,-500.0,0.0003041,4]
[341542687,1730971152035,-544.29,0.0003041,4]
[341542688,1730971152058,-561.15,0.0003041,4]
[341542689,1730971152080,-500.0,0.0003041,4]
[341542690,1730971152103,-1008.48,0.0003041,4]
[341542691,1730971152126,-1069.66,0.0003041,4]
[341542692,1730971152150,-1051.44,0.0003041,4]
[341542693,1730971152175,-500.0,0.0003041,4]
[341542694,1730971152198,-1231.78,0.0003041,4]
[341542695,1730971152220,-897.83,0.0003041,4]
[341542696,1730971152242,-1186.21,0.0003041,4]
[341542697,1730971152264,-578.0,0.0003041,4]
[341542698,1730971152290,-757.45,0.0003041,4]
[341542699,1730971152313,-2634.42,0.0003041,4]
[341542700,1730971152337,-2000.0,0.0003041,4]
[341542701,1730971152360,-1015.43,0.0003041,4]
[341542702,1730971152384,-500.0,0.0003041,4]
[341542703,1730971152407,-643.31,0.0003041,4]
[341542704,1730971152431,-742.64,0.0003041,4]
[341542705,1730971152455,-917.87,0.0003041,4]
[341542706,1730971152477,-500.0,0.0003041,4]
[341542707,1730971152499,-590.76,0.0003041,4]
[341542708,1730971152524,-6016.62,0.0003041,4]
[341542709,1730971152546,-598.31,0.0003041,4]
[341542710,1730971152569,-622.38093043,0.0003041,4]
[341542711,1730971152592,-1005.12,0.0003041,4]
[341542712,1730971152614,-500.0,0.0003041,4]
[341542713,1730971152636,-500.0,0.0003041,4]
[341542714,1730971152658,-640.15,0.0003041,4]
[341542715,1730971152680,-585.1,0.0003041,4]
[341542716,1730971152703,-1029.82,0.0003041,4]
[341542717,1730971152725,-500.0,0.0003041,4]
[341542718,1730971153054,-533.31,0.0003041,4]
[341542719,1730971153079,-1216.47,0.0003041,4]
[341542720,1730971153102,-500.0,0.0003041,4]
[341542721,1730971153126,-500.0,0.0003041,4]
[341542722,1730971153151,-500.0,0.0003041,4]
[341542723,1730971153175,-500.0,0.0003041,4]
[341542724,1730971153199,-500.0,0.0003041,4]
[341542725,1730971153222,-500.0,0.0003041,4]
[341542726,1730971153245,-221.303647,0.0003041,4]
[341542727,1730971153269,-1601.06,0.0003041,4]
[341542728,1730971153294,-500.0,0.0003041,4]
[341542729,1730971153318,-1034.12,0.0003041,4]
[341542730,1730971153342,-500.0,0.0003041,4]
[341542731,1730971153367,-500.0,0.0003041,4]
[341542732,1730971153389,-981.99,0.0003041,4]
[341542733,1730971153414,-4659.03,0.0003041,4]
[341542734,1730971153436,-500.0,0.0003041,4]
[341542735,1730971153460,-151.0,0.0003041,7]
[341542736,1730971153483,-1054.73,0.0003041,4]
[341542737,1730971153507,-533.55,0.0003041,4]
[341542738,1730971153530,-500.0,0.0003041,4]
[341542739,1730971153553,-813.41,0.0003041,4]
[341542740,1730971153576,-500.0,0.0003041,4]
[341542741,1730971153599,-1220.45,0.0003041,4]
[341542742,1730971153621,-500.0,0.0003041,4]
[341542743,1730971153644,-1013.07,0.0003041,4]
[341542744,1730971153668,-500.0,0.0003041,4]
[341542745,1730971153691,-572.30745097,0.0003041,4]
[341542746,1730971153714,-917.49,0.0003041,4]
[341542747,1730971153737,-500.0,0.0003041,4]
[341542748,1730971153759,-500.0,0.0003041,4]
[341542749,1730971153782,-500.0,0.0003041,4]
[341542750,1730971153804,-1132.76,0.0003041,4]
[341542751,1730971153826,-215.717257,0.0003041,4]
[341542752,1730971153848,-724.17,0.0003041,4]
[341542753,1730971153871,-500.0,0.0003041,4]
[341542754,1730971153894,-1390.75,0.0003041,4]
[341542755,1730971153925,-500.0,0.0003041,4]
[341542756,1730971153948,-660.77,0.0003041,4]
[341542757,1730971153971,-500.0,0.0003041,4]
[341542758,1730971153994,-505.48,0.0003041,4]
[341542759,1730971154018,-2358.43,0.0003041,4]
[341542760,1730971154042,-686.67,0.0003041,4]
[341542761,1730971154064,-500.0,0.0003041,4]
[341542762,1730971154088,-500.0,0.0003041,4]
[341542763,1730971154112,-886.85,0.0003041,4]
[341542764,1730971154134,-657.44,0.0003041,4]
[341542765,1730971154157,-655.8,0.0003041,4]
[341542766,1730971154185,-500.0,0.0003041,4]
[341542767,1730971154208,-1055.25,0.0003041,4]
[341542768,1730971154233,-1697.92,0.0003041,4]
[341542769,1730971154256,-765.91,0.0003041,4]
[341542770,1730971154279,-500.0,0.0003041,4]
[341542771,1730971154307,-261.65482897,0.0003041,4]
[341542772,1730971154332,-2156.63,0.0003041,4]
[341542773,1730971154357,-1363.58,0.0003041,4]
[341542774,1730971154380,-500.0,0.0003041,4]
[341542775,1730971154403,-500.0,0.0003041,4]
[341542776,1730971154429,-500.0,0.0003041,4]
[341542777,1730971154451,-500.0,0.0003041,4]
[341542778,1730971154474,-500.0,0.0003041,4]
[341542779,1730971154496,-500.0,0.0003041,4]
[341542780,1730971154519,-986.76,0.0003041,4]
[341542781,1730971154543,-1206.68,0.0003041,4]
[341542782,1730971154566,-743.07,0.0003041,4]
[341542783,1730971154588,-500.0,0.0003041,4]
[341542784,1730971154611,-2423.95,0.0003041,4]
[341542785,1730971154634,-500.0,0.0003041,4]
[341542786,1730971154657,-500.0,0.0003041,4]
[341542787,1730971154681,-500.0,0.0003041,4]
[341542788,1730971154704,-500.0,0.0003041,4]
[341542789,1730971154727,-500.0,0.0003041,4]
[341542790,1730971154749,-500.0,0.0003041,4]
[341542791,1730971154772,-500.0,0.0003041,4]
[341542792,1730971154796,-229.88500026,0.0003041,4]
[341542793,1730971154819,-500.0,0.0003041,4]
[341542794,1730971154841,-778.53,0.0003041,4]
[341542795,1730971154864,-654.5,0.0003041,4]
[341542796,1730971154887,-779.18,0.0003041,4]
[341542797,1730971154911,-500.0,0.0003041,4]
[341542798,1730971154935,-500.0,0.0003041,4]
[341542799,1730971154961,-500.0,0.0003041,4]
[341542800,1730971154986,-500.0,0.0003041,4]
[341542801,1730971155011,-500.0,0.0003041,4]
[341542802,1730971155034,-500.0,0.0003041,4]
[341542803,1730971155055,-500.0,0.0003041,4]
[341542804,1730971155079,-1833.46,0.0003041,4]
[341542805,1730971155102,-1025.77,0.0003041,4]
[341542806,1730971155125,-500.0,0.0003041,4]
[341542807,1730971155149,-1150.49,0.0003041,4]
[341542808,1730971155176,-1271.81,0.0003041,4]
[341542809,1730971155200,-669.87,0.0003041,4]
[341542810,1730971155223,-619.83,0.0003041,4]
[341542811,1730971155247,-500.0,0.0003041,4]
[341542812,1730971155269,-500.0,0.0003041,4]
[341542813,1730971155294,-156.01344326,0.0003041,4]
[341542814,1730971155374,-922.65,0.0003041,4]
[341542815,1730971155398,-500.0,0.0003041,4]
[341542816,1730971155424,-500.0,0.0003041,4]
[341542817,1730971155447,-937.27,0.0003041,4]
[341542818,1730971155470,-873.19,0.0003041,4]
[341542819,1730971155493,-732.93,0.0003041,2]
[341542820,1730971155517,-151.0,0.0003041,7]
[341542821,1730971155540,-693.71,0.0003041,4]
[341542822,1730971155563,-507.17,0.0003041,4]
[341542823,1730971155587,-872.59,0.0003041,4]
[341542824,1730971155611,-1090.97,0.0003041,4]
[341542825,1730971155633,-500.0,0.0003041,4]
[341542826,1730971155655,-500.0,0.0003041,4]
[341542827,1730971155680,-345.2448162,0.0003041,4]
[341542828,1730971155702,-596.7,0.0003041,4]
[341542829,1730971155723,-1693.29,0.0003041,4]
[341542830,1730971155745,-151.0,0.0003041,7]
[341542831,1730971155767,-500.0,0.0003041,4]
[341542832,1730971155789,-1493.2,0.0003041,4]
[341542833,1730971155810,-556.66,0.0003041,4]
[341542834,1730971155831,-551.6,0.0003041,4]
[341542835,1730971155854,-3450.8,0.0003041,4]
[341542836,1730971155876,-500.0,0.0003041,4]
[341542837,1730971155898,-500.0,0.0003041,4]
[341542838,1730971155920,-1242.33,0.0003041,4]
[341542839,1730971155944,-151.0,0.0003041,7]
[341542840,1730971155967,-500.0,0.0003041,4]
[341542841,1730971155990,-921.56,0.0003041,4]
[341542842,1730971156014,-500.0,0.0003041,4]
[341542843,1730971156036,-818.26,0.0003041,4]
[341542844,1730971156058,-500.0,0.0003041,4]
[341542845,1730971156080,-500.0,0.0003041,4]
[341542846,1730971156103,-1081.51,0.0003041,4]